[Event "WYCC 2018 G16"]
[Site "Halkidiki"]
[Date "2018.10.21"]
[Round "2"]
[White "Sanskriti Goyal"]
[Black "Peycheva, Gergana"]
[Result "0-1"]
[ECO "A01"]
[WhiteElo "1971"]
[BlackElo "2152"]
[Annotator "NA"]
[PlyCount "88"]
[EventDate "2018.10.20"]
[EventType "swiss"]
[EventCountry "GRE"]
[SourceTitle "playchess.com"]
[Source "ChessBase"]
[SourceQuality "1"]
[TimeControl "40/5400+30:1800+30"]

1. b3 {[%emt 0:00:00]} e5 {[%emt 0:00:14]} 2. Bb2 {[%emt 0:00:22]} Nc6 {[%emt 0:01:40]} 3. c4 {[%emt 0:01:42]} d6 {[%emt 0:04:59]} 4. g3 {[%emt 0:15:17]} g6 {[%emt 0:03:00]} 5. Bg2 {[%emt 0:01:46] A01: Nimzowitsch-Larsen Opening} Bg7 {[%emt 0:01:06] LiveBook: 72 Games} 6. Nf3 {[%emt 0:04:25]} (6. Nc3 Nf6 7. d3 O-O 8. e3 Be6 9. Nd5 a5 10. Ne2 Rb8 11. Nec3 Ne7 12. Nxf6+ Bxf6 13. O-O Bg7 14. Qd2 c6 15. Ne2 Qd7 16. Rfd1 Ra8 17. d4 Rfd8 18. dxe5 dxe5 19. Qxd7 Rxd7 20. Rxd7 Bxd7 {½-½ (20) Mchedlishvili,M (2632)-Aleksandrov,A (2554) Dubai 2014}) 6... f5 {[%emt 0:05:18]} 7. d3 {[%emt 0:10:04]} Nf6 {[%emt 0:02:14]} 8. O-O {[%emt 0:04:13]} O-O {[%emt 0:02:13]} 9. a3 {[%emt 0:04:39]} Qe8 $146 {[%emt 0:04:07]} ({Predecessor:} 9... a5 10. Nc3 h6 11. Qc2 Bd7 12. Nd5 Nxd5 13. cxd5 Ne7 14. e4 c6 15. dxc6 Bxc6 16. Nh4 {0-1 (36) Gallo,J (2230)-Lutz,K (2345) Hessen 1997}) 10. e3 {[%emt 0:05:24]} h6 {[%emt 0:02:45]} 11. Nc3 {[%emt 0:04:25]} Nd8 {[%emt 0:04:20]} 12. b4 {[%emt 0:06:23]} a6 {[%emt 0:05:10]} 13. a4 {[%emt 0:02:38]} Be6 {[%emt 0:04:12]} 14. Nd2 {[%emt 0:06:41]} Qf7 {[%emt 0:07:49]} 15. Rc1 {[%emt 0:06:05]} Rb8 {[%emt 0:02:13]} 16. Nd5 {[%emt 0:08:35]} Ne8 {[%emt 0:12:20]} 17. f4 {[%emt 0:04:19]} c6 {[%emt 0:02:37]} 18. Nb6 {[%emt 0:01:52]} Qc7 {[%emt 0:03:21]} 19. a5 {[%emt 0:01:22]} Nf7 {[%emt 0:03:17]} 20. b5 {[%emt 0:01:55]} Nf6 {[%emt 0:03:17]} 21. bxa6 {[%emt 0:01:15]} bxa6 {[%emt 0:00:12]} 22. Qf3 {[%emt 0:06:51]} Nd7 {[%emt 0:03:47]} 23. Nxd7 {[%emt 0:00:43]} Bxd7 {[%emt 0:03:54]} 24. Bc3 {[%emt 0:00:27]} Nd8 {[%emt 0:02:49]} 25. fxe5 {[%emt 0:00:30]} dxe5 {[%emt 0:00:49]} 26. Qd1 {[%emt 0:00:34]} Ne6 {[%emt 0:01:25]} 27. Nb3 {[%emt 0:00:28]} Qd6 {[%emt 0:04:32]} 28. d4 {[%emt 0:00:30]} e4 {[%emt 0:02:27]} 29. Rb1 {[%emt 0:00:30]} Rb7 {[%emt 0:01:30]} 30. g4 {[%emt 0:00:30]} Ng5 {[%emt 0:01:47]} 31. Nc5 {[%emt 0:00:23]} Rxb1 {[%emt 0:00:37]} 32. Qxb1 {[%emt 0:00:01]} Be6 {[%emt 0:02:16]} 33. Nxe6 {[%emt 0:00:51]} Qxe6 {[%emt 0:00:04]} 34. gxf5 {[%emt 0:00:08]} Qxc4 {[%emt 0:01:12]} 35. Ba1 {[%emt 0:01:10]} Rxf5 {[%emt 0:01:16]} 36. Rxf5 {[%emt 0:00:23]} gxf5 {[%emt 0:00:01]} 37. Bf1 {[%emt 0:00:26]} Nf3+ {[%emt 0:01:18]} 38. Kh1 {[%emt 0:00:34]} Qf7 {[%emt 0:01:29]} 39. Bxa6 {[%emt 0:00:16]} Qh5 {[%emt 0:00:36]} 40. Qb8+ {[%emt 0:00:00]} Kh7 {[%emt 0:00:00]} 41. Qb2 $2 {[%emt 0:13:15] [#]} (41. Bc4 $18 Bf8 42. Qc7+ Bg7 43. d5) 41... Qg5 {[%emt 0:05:57]} (41... f4 $1 $17 {[%mdl 512]} 42. Qc2 (42. exf4 Qxa5) 42... Kh8) 42. Qf2 {[%emt 0:00:21]} f4 {[%emt 0:03:53]} 43. exf4 {[%emt 0:03:29]} Qxa5 $19 {[%emt 0:03:37]} 44. Qf1 {[%emt 0:06:10]} Nd2 {[%emt 0:01:37]} 0-1

[Event "WYCC 2018 G16"]
[Site "Halkidiki"]
[Date "2018.10.21"]
[Round "2"]
[White "Ros Alonso, Joana"]
[Black "Cervantes Landeiro, Thalia"]
[Result "1/2-1/2"]
[ECO "C25"]
[WhiteElo "1952"]
[BlackElo "2129"]
[Annotator "NA"]
[PlyCount "117"]
[EventDate "2018.10.20"]
[EventType "swiss"]
[EventCountry "GRE"]
[SourceTitle "playchess.com"]
[Source "ChessBase"]
[SourceQuality "1"]
[TimeControl "40/5400+30:1800+30"]

1. e4 {[%emt 0:00:00]} e5 {[%emt 0:00:00]} 2. Nc3 {[%emt 0:00:00]} Nc6 {[%emt 0:00:00]} 3. g3 {[%emt 0:00:00]} Nf6 {[%emt 0:00:00]} 4. Bg2 {[%emt 0:00:00]} Bc5 {[%emt 0:00:08]} 5. Nge2 {[%emt 0:00:07]} d6 {[%emt 0:00:58]} 6. Na4 {[%emt 0:00:15]} Bb6 {[%emt 0:00:51]} 7. Nxb6 {[%emt 0:00:10] C26: Vienna Game: 2...Nf6, sidelines} axb6 {[%emt 0:00:04]} 8. d4 {[%emt 0:00:17]} exd4 {[%emt 0:07:52]} 9. Nxd4 {[%emt 0:00:10]} O-O {[%emt 0:02:39]} 10. O-O {[%emt 0:00:15]} Bd7 {[%emt 0:03:16]} 11. Re1 {[%emt 0:06:24]} Re8 {[%emt 0:01:21]} 12. b3 {[%emt 0:06:30]} Ng4 $146 {[%emt 0:12:49]} ({Predecessor:} 12... d5 13. Nxc6 Bxc6 14. e5 Nd7 15. Bb2 Nc5 16. a4 Qd7 17. Qd2 {½-½ (56) Gdanski,J (2530)-Macieja,B (2553) Polanica Zdroj 1999}) 13. Bb2 {[%emt 0:12:05]} Qf6 {[%emt 0:13:27]} 14. Qd2 {[%emt 0:08:54]} Qg6 {[%emt 0:08:11]} 15. c4 {[%emt 0:12:59]} Nxd4 {[%emt 0:14:23]} 16. Qxd4 {[%emt 0:03:05]} Qh6 {[%emt 0:02:04]} 17. h3 {[%emt 0:10:19]} Nf6 {[%emt 0:01:37]} 18. g4 {[%emt 0:03:24]} Qg5 {[%emt 0:02:24]} 19. a4 {[%emt 0:06:38]} Rad8 {[%emt 0:04:51]} 20. Qe3 {[%emt 0:03:52]} Qxe3 {[%emt 0:03:30]} 21. Rxe3 {[%emt 0:00:07]} Bc6 {[%emt 0:00:37]} 22. Bxf6 {[%emt 0:07:06]} gxf6 {[%emt 0:00:11]} 23. Rae1 {[%emt 0:00:23]} Re7 {[%emt 0:01:54]} 24. f4 {[%emt 0:06:54]} Rde8 {[%emt 0:00:36]} 25. Kf2 {[%emt 0:00:08]} Kg7 {[%emt 0:02:27]} 26. h4 {[%emt 0:06:58]} Bd7 27. g5 fxg5 {[%emt 0:01:32]} 28. hxg5 {[%emt 0:01:13]} Bc6 {[%emt 0:03:33]} 29. Kf3 {[%emt 0:01:10]} Rh8 {[%emt 0:05:45]} 30. Bh3 {[%emt 0:01:11]} h6 {[%emt 0:01:49]} 31. Rg1 {[%emt 0:02:50]} hxg5 {[%emt 0:01:00]} 32. Rxg5+ {[%emt 0:00:06]} Kf8 {[%emt 0:00:02]} 33. Bf5 {[%emt 0:00:50]} Rg8 {[%emt 0:04:44]} 34. Rxg8+ {[%emt 0:01:09]} Kxg8 {[%emt 0:00:01]} 35. Re2 {[%emt 0:01:01]} Bd7 {[%emt 0:01:56]} 36. Rg2+ {[%emt 0:00:32]} Kf8 {[%emt 0:00:27]} 37. Bxd7 {[%emt 0:00:46]} Rxd7 {[%emt 0:00:02]} 38. Kg4 {[%emt 0:00:22]} Ke7 {[%emt 0:00:26]} 39. Kf5 {[%emt 0:00:32]} Rd8 {[%emt 0:00:30]} 40. Rg7 {[%emt 0:00:00]} Rh8 {[%emt 0:00:00]} 41. e5 {[%emt 0:05:27]} dxe5 {[%emt 0:00:58]} 42. fxe5 {[%emt 0:01:53]} Rh5+ {[%emt 0:01:24]} 43. Kf4 {[%emt 0:01:51]} Rh4+ {[%emt 0:06:24]} 44. Rg4 {[%emt 0:02:07]} Rh8 {[%emt 0:02:52]} 45. Rg3 {[%emt 0:02:50]} Ke6 $1 {[%emt 0:01:10]} 46. Rg5 {[%emt 0:14:01] [#]} Rh3 {[%emt 0:05:01]} (46... Rh4+ $1 $17 47. Kg3 Rd4) 47. Rg8 $1 {[%emt 0:01:59]} Rxb3 {[%emt 0:01:46]} 48. Re8+ $2 {[%emt 0:00:19]} (48. Rc8 $11) 48... Kd7 {[%emt 0:00:05]} 49. Rf8 {[%emt 0:00:06]} Ke7 {[%emt 0:01:15]} 50. Rc8 {[%emt 0:00:13]} c5 {[%emt 0:01:25]} 51. Rb8 {[%emt 0:03:23]} Rb4 {[%emt 0:00:40]} 52. Kf5 {[%emt 0:00:10]} Rxc4 {[%emt 0:06:40]} 53. Rxb7+ {[%emt 0:00:28]} Kf8 {[%emt 0:01:23]} 54. Rxb6 {[%emt 0:01:39]} Rxa4 {[%emt 0:00:07]} 55. Rc6 {[%emt 0:00:00]} Rc4 {[%emt 0:00:40]} 56. Kf6 {[%emt 0:00:00]} Rf4+ $2 {[%emt 0:01:02]} (56... Ke8 $11) 57. Kg5 {[%emt 0:00:03]} Rf1 {[%emt 0:02:00]} 58. Rxc5 {[%emt 0:00:21]} Ke7 {[%emt 0:00:02]} 59. Rc6 $11 {[%emt 0:02:27]} 1/2-1/2

[Event "WYCC 2018 G16"]
[Site "Halkidiki"]
[Date "2018.10.21"]
[Round "2"]
[White "De Silva, Tenara"]
[Black "Schulze, Lara"]
[Result "0-1"]
[ECO "A21"]
[WhiteElo "1927"]
[BlackElo "2122"]
[Annotator "NA"]
[PlyCount "54"]
[EventDate "2018.10.20"]
[EventType "swiss"]
[EventCountry "GRE"]
[SourceTitle "playchess.com"]
[Source "ChessBase"]
[SourceQuality "1"]
[TimeControl "40/5400+30:1800+30"]

1. c4 {[%emt 0:00:00]} e5 {[%emt 0:00:00]} 2. Nc3 {[%emt 0:00:02]} Bb4 {[%emt 0:00:00]} 3. g3 {[%emt 0:01:22]} Bxc3 {[%emt 0:00:00]} 4. bxc3 {[%emt 0:00:24]} Nc6 {[%emt 0:00:16]} 5. Bg2 {[%emt 0:00:43]} d6 {[%emt 0:00:54]} 6. d4 {[%emt 0:00:50]} Nge7 {[%emt 0:01:50]} 7. Ba3 {[%emt 0:03:18]} O-O {[%emt 0:07:26]} 8. Nf3 {[%emt 0:04:05]} f6 {[%emt 0:02:35]} 9. O-O {[%emt 0:01:32]} Kh8 {[%emt 0:05:38]} 10. Qc2 {[%emt 0:02:48]} Bg4 {[%emt 0:05:32]} 11. Rfd1 {[%emt 0:03:37]} Qe8 {[%emt 0:02:33]} 12. d5 $11 {[%emt 0:05:44]} Na5 {[%emt 0:09:25]} 13. c5 {[%emt 0:05:34]} Nc4 {[%emt 0:03:16]} 14. Qb3 {[%emt 0:02:34]} Nxa3 {[%emt 0:01:52]} 15. Qxa3 {[%emt 0:00:05]} Qd7 {[%emt 0:03:23]} 16. c4 {[%emt 0:03:27]} b6 {[%emt 0:06:39]} 17. cxd6 {[%emt 0:02:34]} cxd6 {[%emt 0:00:30]} 18. Qb4 {[%emt 0:01:14]} Nf5 {[%emt 0:05:58]} 19. c5 {[%emt 0:18:13]} Nd4 {[%emt 0:07:07]} 20. c6 {[%emt 0:00:36]} Nxe2+ {[%emt 0:01:48]} 21. Kf1 {[%emt 0:00:33]} Qc8 {[%emt 0:01:04]} 22. Qxd6 {[%emt 0:11:14]} Qa6 {[%emt 0:03:06]} 23. Ke1 {[%emt 0:03:53]} Bxf3 {[%emt 0:05:30]} 24. Bxf3 {[%emt 0:00:31]} Nd4 {[%emt 0:00:20]} 25. Rxd4 {[%emt 0:09:29]} exd4 {[%emt 0:00:25]} 26. Qb4 {[%emt 0:01:07]} Qd3 {[%emt 0:02:07]} 27. Qd2 {[%emt 0:03:05]} Qxf3 {[%emt 0:01:16]} 0-1

[Event "WYCC 2018 G16"]
[Site "Halkidiki"]
[Date "2018.10.21"]
[Round "2"]
[White "Shanya Mishra"]
[Black "Bulatova, Kamaliya"]
[Result "1-0"]
[ECO "E04"]
[WhiteElo "1924"]
[BlackElo "2108"]
[Annotator "NA"]
[PlyCount "88"]
[EventDate "2018.10.20"]
[EventType "swiss"]
[EventCountry "GRE"]
[SourceTitle "playchess.com"]
[Source "ChessBase"]
[SourceQuality "1"]
[TimeControl "40/5400+30:1800+30"]

1. d4 {[%emt 0:00:00]} Nf6 {[%emt 0:00:00]} 2. c4 {[%emt 0:00:00]} e6 {[%emt 0:00:00]} 3. Nf3 {[%emt 0:00:05]} d5 {[%emt 0:00:00]} 4. g3 {[%emt 0:00:12]} dxc4 {[%emt 0:00:00]} 5. Bg2 {[%emt 0:00:33]} Bb4+ {[%emt 0:00:00]} 6. Bd2 {[%emt 0:00:40]} c5 {[%emt 0:00:00] E04: Open Catalan: 5 Nf3} (6... a5 7. a3 Bd6 8. Qa4+ Nc6 9. O-O O-O 10. Qxc4 e5 11. dxe5 Nxe5 12. Nxe5 Bxe5 13. Qc2 c6 14. Bc3 Qe7 {½-½ (77) Fedoseev,V (2707)-Shankland,S (2727) Danzhou 2018}) 7. Bxb4 {[%emt 0:01:18]} cxb4 {[%emt 0:00:00]} 8. Ne5 {[%emt 0:01:25]} O-O {[%emt 0:00:00]} 9. a3 {[%emt 0:02:06]} Nd5 {[%emt 0:01:14]} 10. axb4 $146 {[%emt 0:08:54]} ({Predecessor:} 10. Nxc4 b5 11. Ne3 Bb7 12. Nxd5 Bxd5 13. e4 Bb7 14. O-O bxa3 15. Nxa3 {½-½ (42) Ingersol,H (2409)-Zakharov,V (2509) ICCF email 2016}) 10... Nxb4 {[%emt 0:08:11]} 11. Nxc4 {[%emt 0:03:58]} N8c6 {[%emt 0:10:35]} 12. e3 {[%emt 0:00:34]} b5 {[%emt 0:08:32]} 13. Na5 {[%emt 0:04:58]} Qb6 {[%emt 0:02:52]} 14. O-O {[%emt 0:04:49]} Rd8 {[%emt 0:06:48]} 15. Qe2 {[%emt 0:01:40]} ({Better is} 15. Qb3 $16) 15... Rb8 {[%emt 0:05:39]} 16. Nxc6 {[%emt 0:08:30]} Nxc6 {[%emt 0:00:07]} 17. Rc1 {[%emt 0:00:09]} Bb7 {[%emt 0:01:42]} 18. Rc5 {[%emt 0:01:12]} a6 {[%emt 0:04:33]} 19. Nd2 {[%emt 0:02:31]} e5 {[%emt 0:12:45]} 20. Bxc6 {[%emt 0:08:58]} Bxc6 {[%emt 0:12:26]} 21. Rxe5 {[%emt 0:02:34]} Bd5 {[%emt 0:02:32]} 22. Rc1 {[%emt 0:08:33]} f6 {[%emt 0:02:25]} 23. Re7 {[%emt 0:01:10]} Rb7 {[%emt 0:01:26]} 24. Rxb7 {[%emt 0:01:24]} Bxb7 {[%emt 0:00:12]} 25. Rc5 {[%emt 0:11:49]} Qe6 {[%emt 0:01:53]} 26. Qd3 {[%emt 0:04:09]} Qg4 {[%emt 0:02:13]} 27. Qf1 {[%emt 0:04:52]} Qe6 {[%emt 0:02:56]} 28. Qd3 {[%emt 0:00:06]} Qg4 {[%emt 0:00:35]} 29. Qf1 {[%emt 0:00:05]} Qe6 {[%emt 0:01:05]} 30. h3 {[%emt 0:01:28]} Rd5 {[%emt 0:02:26]} 31. Rxd5 {[%emt 0:01:23]} Qxd5 {[%emt 0:00:01]} 32. f3 {[%emt 0:00:12]} f5 {[%emt 0:01:59]} 33. Qd3 {[%emt 0:01:14]} Qe6 {[%emt 0:02:44]} 34. Kh2 {[%emt 0:03:35]} b4 {[%emt 0:01:50]} 35. e4 {[%emt 0:01:05]} a5 {[%emt 0:00:56]} 36. d5 {[%emt 0:00:15]} fxe4 {[%emt 0:00:21]} 37. fxe4 {[%emt 0:01:14]} Qf6 {[%emt 0:00:19]} 38. Kg2 {[%emt 0:00:00]} Ba6 {[%emt 0:02:07]} 39. Qc2 {[%emt 0:00:00]} Qd4 {[%emt 0:00:00]} 40. Nf3 {[%emt 0:00:00]} Qe3 $18 {[%emt 0:00:00]} (40... Qd3 $1 $15 41. Qxd3 Bxd3) 41. d6 {[%emt 0:09:15]} Bf1+ {[%emt 0:06:24]} 42. Kh2 {[%emt 0:01:05]} Ba6 {[%emt 0:00:09]} 43. d7 {[%emt 0:01:07]} Qb6 {[%emt 0:00:53]} 44. Qc8+ {[%emt 0:00:15]} Kf7 1-0

[Event "WYCC 2018 G16"]
[Site "Halkidiki"]
[Date "2018.10.21"]
[Round "2"]
[White "Esadze, Tamari"]
[Black "Langvik, Ulrikke"]
[Result "1-0"]
[ECO "C08"]
[WhiteElo "1911"]
[BlackElo "1715"]
[Annotator "NA"]
[PlyCount "91"]
[EventDate "2018.10.20"]
[EventType "swiss"]
[EventCountry "GRE"]
[SourceTitle "playchess.com"]
[Source "ChessBase"]
[SourceQuality "1"]
[TimeControl "40/5400+30:1800+30"]

1. e4 {[%emt 0:00:00]} e6 {[%emt 0:00:00]} 2. d4 {[%emt 0:00:00]} d5 {[%emt 0:00:00]} 3. Nd2 {[%emt 0:00:00]} c5 {[%emt 0:00:00]} 4. exd5 {[%emt 0:00:00]} exd5 {[%emt 0:00:00]} 5. Ngf3 {[%emt 0:00:01] LiveBook: 2053 Games} Nf6 {[%emt 0:00:10]} 6. Bb5+ {[%emt 0:00:12]} Bd7 {[%emt 0:00:07]} 7. Bxd7+ {[%emt 0:00:05]} Nbxd7 {[%emt 0:00:06]} 8. O-O {[%emt 0:00:11]} Be7 {[%emt 0:00:07]} 9. dxc5 {[%emt 0:00:15]} Nxc5 {[%emt 0:00:09]} 10. Nb3 {[%emt 0:00:09]} Nce4 {[%emt 0:00:17]} 11. Nfd4 {[%emt 0:00:16]} Qd7 {[%emt 0:00:19]} 12. f3 {[%emt 0:02:02]} Nd6 {[%emt 0:00:44]} 13. Nc5 {[%emt 0:02:38] C08: French Tarrasch: 3...c5 4 exd5 exd5 sidelines} Qc7 {[%emt 0:08:23]} 14. Nd3 {[%emt 0:01:00]} O-O {[%emt 0:03:37]} 15. c3 {[%emt 0:01:29]} (15. Be3 Rfe8 16. Bf2 a6 17. Re1 g6 18. Qd2 Rac8 19. Re2 Nc4 20. Qf4 Qxf4 21. Nxf4 Nxb2 22. Rxe7 Rxe7 {1-0 (72) Antal,G (2522)-Short,N (2681) Caleta 2018}) 15... Rfe8 {[%emt 0:03:12]} 16. Bf4 {[%emt 0:03:21]} Nh5 {[%emt 0:03:31]} 17. Re1 {[%emt 0:30:32]} Bf6 $146 {[%emt 0:21:20]} ({Predecessor:} 17... Qd7 18. Bc1 Rac8 19. g4 Nf6 20. g5 Nh5 21. f4 g6 22. Ne5 Qh3 23. Re3 {½-½ (23) Daurelle,H (2337)-Anda,H (2222) IECG email 2006}) 18. Qa4 {[%emt 0:14:51]} Qc4 {[%emt 0:24:14]} 19. Qxc4 {[%emt 0:05:20]} Nxc4 {[%emt 0:00:45]} 20. b3 {[%emt 0:05:13]} Nb2 {[%emt 0:08:17]} 21. Nxb2 {[%emt 0:01:45]} Nxf4 {[%emt 0:02:14]} 22. Kf1 {[%emt 0:10:02]} Ne6 {[%emt 0:09:35]} 23. Rad1 {[%emt 0:05:53]} Rac8 {[%emt 0:02:10]} 24. Na4 {[%emt 0:01:31]} Kf8 {[%emt 0:02:10]} 25. Nb5 {[%emt 0:01:06]} Red8 {[%emt 0:05:42]} 26. Nxa7 {[%emt 0:00:40]} Ra8 {[%emt 0:00:01]} 27. Nb5 {[%emt 0:00:12]} Ra5 {[%emt 0:00:50]} 28. Nd4 {[%emt 0:01:59]} b5 {[%emt 0:01:10]} 29. Nxe6+ {[%emt 0:05:50]} fxe6 {[%emt 0:00:26]} 30. Nc5 {[%emt 0:00:02]} Re8 {[%emt 0:01:46]} 31. Nxe6+ {[%emt 0:01:42]} Kf7 {[%emt 0:00:05]} 32. Nd4 {[%emt 0:01:15]} Rxe1+ {[%emt 0:00:22]} 33. Rxe1 {[%emt 0:04:09]} b4 {[%emt 0:01:44]} 34. Nc6 {[%emt 0:00:58]} Rc5 {[%emt 0:00:14]} 35. Nxb4 {[%emt 0:00:26]} Bxc3 {[%emt 0:00:20]} 36. Nd3 {[%emt 0:00:02]} Ra5 {[%emt 0:01:33]} 37. Rc1 {[%emt 0:00:42]} d4 {[%emt 0:00:19]} 38. Rc2 {[%emt 0:00:24]} Kf6 {[%emt 0:00:44]} 39. Nf2 {[%emt 0:00:30]} Kf5 {[%emt 0:00:49]} 40. Ne4 {[%emt 0:00:00]} Ba1 {[%emt 0:00:00]} 41. Ke2 {[%emt 0:03:33]} Ra6 {[%emt 0:03:06]} 42. Kd3 {[%emt 0:00:20]} Kf4 {[%emt 0:01:00]} 43. Nc5 {[%emt 0:02:35]} Rh6 {[%emt 0:01:52]} 44. h3 Bc3 $18 {[%emt 0:06:34]} 45. Na4 {[%emt 0:02:17]} Bb4 {[%emt 0:02:08]} 46. Rc4 {[%emt 0:00:19] Ke4+ Kxe4} 1-0

[Event "WYCC 2018 G16"]
[Site "Halkidiki"]
[Date "2018.10.21"]
[Round "2"]
[White "Xing, Ashley"]
[Black "Ge, Eva"]
[Result "0-1"]
[ECO "D06"]
[WhiteElo "1889"]
[BlackElo "1701"]
[Annotator "NA"]
[PlyCount "66"]
[EventDate "2018.10.20"]
[EventType "swiss"]
[EventCountry "GRE"]
[SourceTitle "playchess.com"]
[Source "ChessBase"]
[SourceQuality "1"]
[TimeControl "40/5400+30:1800+30"]

1. d4 {[%emt 0:00:00]} d5 {[%emt 0:00:00]} 2. c4 {[%emt 0:00:00]} c5 {[%emt 0:00:00]} 3. e3 {[%emt 0:09:43]} e6 {[%emt 0:00:00]} 4. Nf3 {[%emt 0:01:26]} Nc6 {[%emt 0:00:00]} 5. Nc3 {[%emt 0:01:43]} Nf6 {[%emt 0:00:00]} 6. Be2 {[%emt 0:03:15]} dxc4 {[%emt 0:01:54]} 7. Bxc4 {[%emt 0:00:17]} cxd4 {[%emt 0:02:56]} 8. exd4 {[%emt 0:00:24]} Bb4 {[%emt 0:04:17]} 9. a3 {[%emt 0:06:06]} Bxc3+ {[%emt 0:09:22]} 10. bxc3 {[%emt 0:00:13]} Nd5 {[%emt 0:00:32]} 11. Bd2 {[%emt 0:04:00]} O-O {[%emt 0:08:44]} 12. O-O {[%emt 0:02:49]} b6 {[%emt 0:06:21]} 13. Re1 {[%emt 0:07:15]} Bb7 $14 {[%emt 0:01:34]} 14. Qc2 {[%emt 0:11:14]} Rc8 {[%emt 0:15:31]} 15. Ng5 {[%emt 0:14:28]} Nf6 {[%emt 0:03:03]} 16. Qa2 {[%emt 0:08:15]} Na5 {[%emt 0:13:52]} 17. Bd3 {[%emt 0:11:19]} Bd5 {[%emt 0:11:02]} 18. Qc2 {[%emt 0:00:49]} h6 {[%emt 0:00:40]} 19. Ne4 {[%emt 0:03:34]} Nb3 {[%emt 0:06:55]} 20. Rab1 {[%emt 0:00:20]} Nxd4 {[%emt 0:01:00]} 21. Nxf6+ {[%emt 0:00:33]} Qxf6 {[%emt 0:00:02]} 22. Qa4 {[%emt 0:01:01]} Nf3+ {[%emt 0:08:34]} 23. gxf3 {[%emt 0:00:28]} Qxf3 {[%emt 0:00:01]} 24. Be4 {[%emt 0:00:47]} Qg4+ {[%emt 0:00:17]} 25. Kh1 {[%emt 0:06:13]} Rc4 {[%emt 0:00:12]} 26. Qxc4 {[%emt 0:01:51]} Bxc4 {[%emt 0:00:10]} 27. f3 {[%emt 0:01:25]} Qh5 {[%emt 0:01:11]} 28. Rg1 {[%emt 0:01:38]} Kh8 {[%emt 0:01:48]} 29. Be3 {[%emt 0:00:48]} Be2 {[%emt 0:00:54]} 30. Rg3 {[%emt 0:00:58]} f5 {[%emt 0:00:33]} 31. Bd4 {[%emt 0:00:56]} fxe4 {[%emt 0:01:14]} 32. Rxg7 {[%emt 0:01:16]} Qxf3+ {[%emt 0:02:05]} 33. Kg1 {[%emt 0:00:11]} Rg8 0-1

[Event "WYCC 2018 G16"]
[Site "Halkidiki"]
[Date "2018.10.21"]
[Round "2"]
[White "Skaslien, Ingrid"]
[Black "Servin-Demarrais, Helena"]
[Result "1/2-1/2"]
[ECO "E98"]
[WhiteElo "1885"]
[BlackElo "1540"]
[Annotator "NA"]
[PlyCount "67"]
[EventDate "2018.10.20"]
[EventType "swiss"]
[EventCountry "GRE"]
[SourceTitle "playchess.com"]
[Source "ChessBase"]
[SourceQuality "1"]
[TimeControl "40/5400+30:1800+30"]

1. d4 {[%emt 0:00:00]} Nf6 {[%emt 0:00:00]} 2. c4 {[%emt 0:00:00]} g6 {[%emt 0:00:00]} 3. Nc3 {[%emt 0:01:42]} Bg7 {[%emt 0:00:00]} 4. e4 {[%emt 0:01:07]} d6 {[%emt 0:00:05]} 5. Be2 {[%emt 0:01:23]} O-O {[%emt 0:00:40]} 6. Nf3 {[%emt 0:00:28]} e5 {[%emt 0:02:05]} 7. O-O {[%emt 0:00:57]} Nc6 {[%emt 0:00:59]} 8. d5 {[%emt 0:02:14]} Ne7 {[%emt 0:00:35]} 9. Ne1 {[%emt 0:01:34]} Nd7 10. Nd3 {[%emt 0:03:29]} f5 {[%emt 0:03:36]} 11. f3 {[%emt 0:01:57]} f4 {[%emt 0:07:31]} 12. b4 {[%emt 0:03:19] LiveBook: 16 Games} a6 {[%emt 0:02:20]} 13. c5 {[%emt 0:09:08]} g5 {[%emt 0:01:46]} 14. a4 {[%emt 0:11:48]} h5 {[%emt 0:03:43]} 15. Ba3 {[%emt 0:03:47]} Nf6 $16 {[%emt 0:04:19]} 16. h3 {[%emt 0:04:02]} Bd7 {[%emt 0:16:55]} 17. b5 {[%emt 0:09:08]} axb5 {[%emt 0:09:55]} 18. cxd6 {[%emt 0:03:57]} cxd6 {[%emt 0:01:06]} 19. Bxd6 {[%emt 0:14:40]} bxa4 {[%emt 0:06:01]} 20. Bxe7 {[%emt 0:09:02]} Qxe7 {[%emt 0:01:01]} 21. Nxa4 {[%emt 0:00:20]} g4 {[%emt 0:12:50]} 22. Nac5 {[%emt 0:08:29]} gxh3 {[%emt 0:04:48]} 23. Qb3 {[%emt 0:02:25]} Kh8 {[%emt 0:07:35]} 24. Qxb7 {[%emt 0:00:58]} Rxa1 {[%emt 0:01:11]} 25. Rxa1 {[%emt 0:00:09]} hxg2 {[%emt 0:00:43]} 26. Ra7 {[%emt 0:03:00]} Rf7 {[%emt 0:02:55]} 27. Qb8+ {[%emt 0:00:30]} Bf8 {[%emt 0:01:16]} 28. d6 {[%emt 0:02:22]} Qxd6 {[%emt 0:00:52]} 29. Qxd6 {[%emt 0:00:18]} Bxd6 {[%emt 0:00:04]} 30. Nxd7 {[%emt 0:00:27]} Rxd7 {[%emt 0:00:46]} 31. Rxd7 {[%emt 0:00:16]} Nxd7 {[%emt 0:00:02]} 32. Kxg2 {[%emt 0:00:09]} Kg7 {[%emt 0:00:08]} 33. Kh3 {[%emt 0:01:16]} Kg6 {[%emt 0:01:15]} 34. Bd1 {[%emt 0:00:46]} 1/2-1/2

[Event "WYCC 2018 G16"]
[Site "Halkidiki"]
[Date "2018.10.21"]
[Round "2"]
[White "Tejasvi M"]
[Black "Bania, Eleni"]
[Result "1-0"]
[ECO "C54"]
[WhiteElo "1869"]
[BlackElo "1454"]
[Annotator "NA"]
[PlyCount "55"]
[EventDate "2018.10.20"]
[EventType "swiss"]
[EventCountry "GRE"]
[SourceTitle "playchess.com"]
[Source "ChessBase"]
[SourceQuality "1"]
[TimeControl "40/5400+30:1800+30"]

1. e4 {[%emt 0:00:09]} e5 {[%emt 0:00:00]} 2. Nf3 {[%emt 0:00:07]} Nc6 {[%emt 0:00:00]} 3. Bc4 {[%emt 0:00:07]} Bc5 {[%emt 0:00:00]} 4. c3 {[%emt 0:00:09]} Nf6 {[%emt 0:00:00]} 5. d3 {[%emt 0:00:07]} a6 {[%emt 0:01:06]} 6. a4 {[%emt 0:02:28]} d6 {[%emt 0:04:55]} 7. Bb3 {[%emt 0:03:10]} Ba7 {[%emt 0:01:54]} 8. Nbd2 {[%emt 0:01:08]} O-O {[%emt 0:00:23]} 9. O-O {[%emt 0:00:58]} Re8 {[%emt 0:10:12]} 10. Re1 {[%emt 0:14:56]} Be6 {[%emt 0:07:47]} 11. Bxe6 {[%emt 0:04:45]} Rxe6 {[%emt 0:00:47]} 12. Nf1 {[%emt 0:05:32]} h6 {[%emt 0:14:23]} 13. Ng3 {[%emt 0:02:15]} Ne7 {[%emt 0:13:02]} 14. Nh4 {[%emt 0:07:28]} Nh7 {[%emt 0:01:34]} 15. Nhf5 {[%emt 0:10:23]} Nxf5 {[%emt 0:02:29]} 16. Nxf5 {[%emt 0:04:08]} Rg6 {[%emt 0:14:55]} 17. h4 {[%emt 0:07:20]} Re6 {[%emt 0:12:29]} 18. b3 {[%emt 0:09:58]} Qf6 {[%emt 0:06:08]} 19. Ra2 {[%emt 0:03:41]} Rd8 {[%emt 0:01:06]} 20. Qf3 {[%emt 0:07:46]} c6 {[%emt 0:01:19]} 21. c4 {[%emt 0:05:18]} Nf8 {[%emt 0:01:51]} 22. g4 {[%emt 0:03:24]} Nh7 {[%emt 0:01:04]} 23. Kg2 {[%emt 0:01:10]} Kh8 {[%emt 0:02:14]} 24. Rh1 {[%emt 0:01:50]} Kg8 {[%emt 0:00:48]} 25. g5 {[%emt 0:00:43]} hxg5 {[%emt 0:00:33]} 26. hxg5 {[%emt 0:00:07]} Qg6 {[%emt 0:00:54]} 27. Nh4 {[%emt 0:00:12]} Nxg5 {[%emt 0:00:20]} 28. Nxg6 {[%emt 0:00:07]} 1-0